[Event "Late-Titled-Tuesday-Blitz-September-19-2023"]
[Site "Chess.com"]
[Date "2023.09.19"]
[Round "6"]
[White "Byniolus"]
[Black "Pingah9"]
[Result "1-0"]
[WhiteElo "2790"]
[BlackElo "2555"]
[TimeControl "180+1"]
[EndTime "15:05:10 PDT"]
[Termination "Byniolus won by checkmate"]

1. d4 {[%clk 0:02:54.7]} 1... g6 {[%clk 0:02:52.7]} 2. Nf3 {[%clk 0:02:54.9]}
2... Bg7 {[%clk 0:02:52.8]} 3. Bf4 {[%clk 0:02:55.8]} 3... d6 {[%clk 0:02:49.6]}
4. e3 {[%clk 0:02:56.1]} 4... Nf6 {[%clk 0:02:49.9]} 5. h3 {[%clk 0:02:56.6]}
5... O-O {[%clk 0:02:49.9]} 6. Be2 {[%clk 0:02:57.2]} 6... Nbd7 {[%clk
0:02:47.4]} 7. O-O {[%clk 0:02:57.3]} 7... c5 {[%clk 0:02:46.8]} 8. c3 {[%clk
0:02:57.6]} 8... b6 {[%clk 0:02:43.6]} 9. a4 {[%clk 0:02:57.7]} 9... Bb7 {[%clk
0:02:43.2]} 10. a5 {[%clk 0:02:57.1]} 10... Rc8 {[%clk 0:02:32.7]} 11. Nbd2
{[%clk 0:02:53]} 11... Qc7 {[%clk 0:02:26.5]} 12. Bh2 {[%clk 0:02:53]} 12... Ne4
{[%clk 0:02:24.7]} 13. Qb3 {[%clk 0:02:45.5]} 13... Nxd2 {[%clk 0:02:22.8]} 14.
Nxd2 {[%clk 0:02:46.4]} 14... Rb8 {[%clk 0:02:06.8]} 15. axb6 {[%clk 0:02:42.2]}
15... axb6 {[%clk 0:02:05.4]} 16. Ra7 {[%clk 0:02:21.2]} 16... Nf6 {[%clk
0:02:04.7]} 17. Rfa1 {[%clk 0:02:17.7]} 17... Qc8 {[%clk 0:02:00.1]} 18. Bf3
{[%clk 0:01:13.1]} 18... Bxf3 {[%clk 0:01:57.2]} 19. Nxf3 {[%clk 0:01:14]} 19...
Re8 {[%clk 0:01:52.6]} 20. Ng5 {[%clk 0:01:09.4]} 20... c4 {[%clk 0:01:46.9]}
21. Qb5 {[%clk 0:01:09.5]} 21... h6 {[%clk 0:01:44.7]} 22. Nf3 {[%clk
0:00:55.9]} 22... Qf5 {[%clk 0:01:40.5]} 23. Qxc4 {[%clk 0:00:49.5]} 23... g5
{[%clk 0:01:32.6]} 24. Bxd6 {[%clk 0:00:42.3]} 24... b5 {[%clk 0:01:21.5]} 25.
Qb3 {[%clk 0:00:39.3]} 25... Rb6 {[%clk 0:01:08.7]} 26. Bxe7 {[%clk 0:00:37.3]}
26... Nd5 {[%clk 0:01:03.9]} 27. Bc5 {[%clk 0:00:30.6]} 27... Rg6 {[%clk
0:00:58.1]} 28. Qxb5 {[%clk 0:00:24.8]} 28... Re4 {[%clk 0:00:56.6]} 29. Nd2
{[%clk 0:00:19]} 29... g4 {[%clk 0:00:52.6]} 30. Ra8+ {[%clk 0:00:19.1]} 30...
Kh7 {[%clk 0:00:52.6]} 31. Nxe4 {[%clk 0:00:19.2]} 31... gxh3 {[%clk 0:00:52.5]}
32. Ng3 {[%clk 0:00:18]} 32... Qc2 {[%clk 0:00:44]} 33. Qe2 {[%clk 0:00:15.3]}
33... Qb3 {[%clk 0:00:29.8]} 34. c4 {[%clk 0:00:08.5]} 34... Nf6 {[%clk
0:00:24.3]} 35. gxh3 {[%clk 0:00:05.7]} 35... h5 {[%clk 0:00:23.1]} 36. Kh1
{[%clk 0:00:04.9]} 36... h4 {[%clk 0:00:22.5]} 37. Nh5 {[%clk 0:00:05.2]} 37...
Qb7+ {[%clk 0:00:21.7]} 38. d5 {[%clk 0:00:04.8]} 38... Ne4 {[%clk 0:00:16.2]}
39. Rg1 {[%clk 0:00:04]} 39... Qxa8 {[%clk 0:00:11.7]} 40. Nxg7 {[%clk
0:00:03.5]} 40... Rxg1+ {[%clk 0:00:10.7]} 41. Kxg1 {[%clk 0:00:04.4]} 41...
Nxc5 {[%clk 0:00:05.9]} 42. Nf5 {[%clk 0:00:04.3]} 42... Kg6 {[%clk 0:00:04.8]}
43. Qg4+ {[%clk 0:00:03.9]} 43... Kf6 {[%clk 0:00:05]} 44. Nd4 {[%clk
0:00:04.2]} 44... Qa1+ {[%clk 0:00:04.3]} 45. Kg2 {[%clk 0:00:04.9]} 45... Qa2
{[%clk 0:00:04.7]} 46. Qxh4+ {[%clk 0:00:04.9]} 46... Ke5 {[%clk 0:00:04.8]} 47.
Qg3+ {[%clk 0:00:04.7]} 47... Kf6 {[%clk 0:00:04.7]} 48. Qf4+ {[%clk 0:00:05.2]}
48... Kg7 {[%clk 0:00:05.1]} 49. Qg5+ {[%clk 0:00:05]} 49... Kh7 {[%clk
0:00:05]} 50. Nf5 {[%clk 0:00:04.7]} 50... Ne6 {[%clk 0:00:04]} 51. Qh6+ {[%clk
0:00:04.5]} 51... Kg8 {[%clk 0:00:03.9]} 52. Ne7# {[%clk 0:00:05.4]} 1-0

[Event "Late-Titled-Tuesday-Blitz-September-19-2023"]
[Site "Chess.com"]
[Date "2023.09.19"]
[Round "6"]
[White "rionelG"]
[Black "Dr_crypt"]
[Result "0-1"]
[WhiteElo "2325"]
[BlackElo "2437"]
[TimeControl "180+1"]
[EndTime "15:05:13 PDT"]
[Termination "Dr_crypt won on time"]

1. e4 {[%clk 0:03:00.9]} 1... d5 {[%clk 0:02:59.6]} 2. exd5 {[%clk 0:03:00.3]}
2... Qxd5 {[%clk 0:03:00.5]} 3. Nc3 {[%clk 0:03:00.3]} 3... Qd6 {[%clk
0:03:00.2]} 4. d4 {[%clk 0:02:59.8]} 4... c6 {[%clk 0:02:59.8]} 5. Nf3 {[%clk
0:02:58.1]} 5... Bg4 {[%clk 0:02:59.2]} 6. Be2 {[%clk 0:02:58]} 6... Nd7 {[%clk
0:02:57.8]} 7. Ne5 {[%clk 0:02:49.3]} 7... Bxe2 {[%clk 0:02:51.7]} 8. Qxe2
{[%clk 0:02:50.2]} 8... Qxd4 {[%clk 0:02:51.2]} 9. Nxd7 {[%clk 0:02:41.5]} 9...
Qxd7 {[%clk 0:02:50.7]} 10. Bd2 {[%clk 0:02:39.7]} 10... Nf6 {[%clk 0:02:45.1]}
11. O-O-O {[%clk 0:02:39.2]} 11... e6 {[%clk 0:02:37.3]} 12. Bf4 {[%clk
0:02:38.8]} 12... Qc8 {[%clk 0:02:35.3]} 13. Be5 {[%clk 0:02:27]} 13... Be7
{[%clk 0:02:34.1]} 14. g4 {[%clk 0:02:25.7]} 14... O-O {[%clk 0:02:29.8]} 15. g5
{[%clk 0:02:24.7]} 15... Nd5 {[%clk 0:02:29.1]} 16. Ne4 {[%clk 0:02:25.3]} 16...
f5 {[%clk 0:02:15.8]} 17. gxf6 {[%clk 0:02:24.8]} 17... Nxf6 {[%clk 0:02:13.7]}
18. Ng5 {[%clk 0:02:14.1]} 18... h6 {[%clk 0:02:02.7]} 19. h4 {[%clk 0:01:56]}
19... Re8 {[%clk 0:01:37.3]} 20. Qd3 {[%clk 0:01:53.9]} 20... Rd8 {[%clk
0:01:01.6]} 21. Qg6 {[%clk 0:01:49.9]} 21... Rxd1+ {[%clk 0:01:00.8]} 22. Kxd1
{[%clk 0:01:25]} 22... Qe8 {[%clk 0:00:56.2]} 23. Qxe8+ {[%clk 0:01:02.3]} 23...
Rxe8 {[%clk 0:00:55.5]} 24. Nxe6 {[%clk 0:01:01.9]} 24... Bb4 {[%clk 0:00:34]}
25. Bxf6 {[%clk 0:01:00]} 25... Rxe6 {[%clk 0:00:33.8]} 26. Bd4 {[%clk
0:00:59.4]} 26... Rd6 {[%clk 0:00:33.1]} 27. c3 {[%clk 0:00:56.5]} 27... c5
{[%clk 0:00:33]} 28. Kc2 {[%clk 0:00:51.9]} 28... cxd4 {[%clk 0:00:28.5]} 29.
cxb4 {[%clk 0:00:51.6]} 29... Rf6 {[%clk 0:00:29.1]} 30. Rf1 {[%clk 0:00:49.1]}
30... Rf3 {[%clk 0:00:23.3]} 31. Kd2 {[%clk 0:00:47.2]} 31... h5 {[%clk
0:00:19.1]} 32. Ke2 {[%clk 0:00:45.5]} 32... Rh3 {[%clk 0:00:19.4]} 33. Rd1
{[%clk 0:00:20.6]} 33... Rxh4 {[%clk 0:00:19.4]} 34. Kd3 {[%clk 0:00:19.8]}
34... Rf4 {[%clk 0:00:19.3]} 35. Ke2 {[%clk 0:00:18.1]} 35... h4 {[%clk
0:00:19.1]} 36. b5 {[%clk 0:00:17.8]} 36... h3 {[%clk 0:00:18.3]} 37. Rh1 {[%clk
0:00:16.4]} 37... Rh4 {[%clk 0:00:17.7]} 38. Kf3 {[%clk 0:00:16.7]} 38... g5
{[%clk 0:00:15.9]} 39. a4 {[%clk 0:00:15.1]} 39... h2 {[%clk 0:00:16]} 40. Kg3
{[%clk 0:00:11]} 40... Kf7 {[%clk 0:00:11.9]} 41. b4 {[%clk 0:00:08.6]} 41...
Ke6 {[%clk 0:00:11.3]} 42. a5 {[%clk 0:00:07.7]} 42... Kd5 {[%clk 0:00:10.2]}
43. a6 {[%clk 0:00:03.3]} 43... b6 {[%clk 0:00:09.5]} 44. Kg2 {[%clk 0:00:03.4]}
44... d3 {[%clk 0:00:08.7]} 45. Kf3 {[%clk 0:00:01.8]} 45... Kd4 {[%clk
0:00:08.3]} 46. Kg3 {[%clk 0:00:01.2]} 46... d2 {[%clk 0:00:07.8]} 0-1

[Event "Late-Titled-Tuesday-Blitz-September-19-2023"]
[Site "Chess.com"]
[Date "2023.09.19"]
[Round "6"]
[White "ElDivis"]
[Black "azikom"]
[Result "1/2-1/2"]
[WhiteElo "2517"]
[BlackElo "2622"]
[TimeControl "180+1"]
[EndTime "15:05:19 PDT"]
[Termination "Game drawn - insufficient material"]

1. Nf3 {[%clk 0:02:56.9]} 1... c5 {[%clk 0:02:41.5]} 2. e4 {[%clk 0:02:40.4]}
2... d6 {[%clk 0:02:40.1]} 3. d4 {[%clk 0:02:38.8]} 3... cxd4 {[%clk 0:02:40.5]}
4. Nxd4 {[%clk 0:02:39.7]} 4... Nf6 {[%clk 0:02:40.3]} 5. Nc3 {[%clk 0:02:39.7]}
5... a6 {[%clk 0:02:40.7]} 6. h3 {[%clk 0:02:37.8]} 6... b5 {[%clk 0:02:39.9]}
7. Nd5 {[%clk 0:02:32.8]} 7... Bb7 {[%clk 0:02:31.7]} 8. Nxf6+ {[%clk
0:02:28.9]} 8... gxf6 {[%clk 0:02:31.7]} 9. Bd3 {[%clk 0:02:23]} 9... Nd7 {[%clk
0:02:30.6]} 10. O-O {[%clk 0:02:20.8]} 10... Nc5 {[%clk 0:02:26.1]} 11. Re1
{[%clk 0:02:00]} 11... h5 {[%clk 0:02:23.5]} 12. b4 {[%clk 0:01:55.8]} 12... Na4
{[%clk 0:02:09.5]} 13. c4 {[%clk 0:01:49.5]} 13... Qd7 {[%clk 0:01:35.4]} 14.
cxb5 {[%clk 0:01:42.9]} 14... Nc3 {[%clk 0:01:35.1]} 15. bxa6 {[%clk 0:01:10.7]}
15... Nxd1 {[%clk 0:01:31]} 16. axb7 {[%clk 0:01:10.2]} 16... Qxb7 {[%clk
0:01:29.9]} 17. Bb5+ {[%clk 0:00:59.3]} 17... Kd8 {[%clk 0:01:22.8]} 18. Rxd1
{[%clk 0:00:59.3]} 18... e5 {[%clk 0:01:00.2]} 19. Nc6+ {[%clk 0:00:54.9]} 19...
Kc7 {[%clk 0:00:54.8]} 20. a4 {[%clk 0:00:52.8]} 20... Qxb5 {[%clk 0:00:54.3]}
21. axb5 {[%clk 0:00:46.3]} 21... Rxa1 {[%clk 0:00:53.4]} 22. Rf1 {[%clk
0:00:31.8]} 22... Bh6 {[%clk 0:00:50.8]} 23. Bxh6 {[%clk 0:00:19.9]} 23... Rxf1+
{[%clk 0:00:49.9]} 24. Kxf1 {[%clk 0:00:20.8]} 24... Rxh6 {[%clk 0:00:49.6]} 25.
Ne7 {[%clk 0:00:21]} 25... Rh8 {[%clk 0:00:35.9]} 26. Nd5+ {[%clk 0:00:19.9]}
26... Kb7 {[%clk 0:00:32.3]} 27. Nxf6 {[%clk 0:00:19.8]} 27... Kb6 {[%clk
0:00:31.2]} 28. g4 {[%clk 0:00:12.4]} 28... hxg4 {[%clk 0:00:30.6]} 29. hxg4
{[%clk 0:00:13.3]} 29... Kxb5 {[%clk 0:00:30.8]} 30. Nd5 {[%clk 0:00:13]} 30...
Kc4 {[%clk 0:00:23.5]} 31. Kg2 {[%clk 0:00:11.2]} 31... Kd4 {[%clk 0:00:22.1]}
32. f3 {[%clk 0:00:10.9]} 32... Ra8 {[%clk 0:00:18.3]} 33. b5 {[%clk 0:00:09.9]}
33... Kc5 {[%clk 0:00:16.6]} 34. b6 {[%clk 0:00:09.7]} 34... Ra2+ {[%clk
0:00:16]} 35. Kg3 {[%clk 0:00:10]} 35... Rb2 {[%clk 0:00:16.2]} 36. Kh4 {[%clk
0:00:09.9]} 36... Kc6 {[%clk 0:00:14.8]} 37. Kg3 {[%clk 0:00:06.1]} 37... Rb3
{[%clk 0:00:14.3]} 38. Kg2 {[%clk 0:00:05.8]} 38... Rb5 {[%clk 0:00:10.8]} 39.
Kg3 {[%clk 0:00:03.5]} 39... Rxd5 {[%clk 0:00:09]} 40. exd5+ {[%clk 0:00:04.4]}
40... Kxb6 {[%clk 0:00:09.5]} 41. Kh4 {[%clk 0:00:05.3]} 41... Kc5 {[%clk
0:00:09.6]} 42. Kg5 {[%clk 0:00:06.1]} 42... Kxd5 {[%clk 0:00:07.4]} 43. Kf6
{[%clk 0:00:06.2]} 43... Kc6 {[%clk 0:00:04.1]} 44. Kxf7 {[%clk 0:00:05.6]}
44... d5 {[%clk 0:00:03.9]} 45. g5 {[%clk 0:00:05.9]} 45... e4 {[%clk 0:00:04]}
46. fxe4 {[%clk 0:00:05.5]} 46... dxe4 {[%clk 0:00:04.6]} 47. g6 {[%clk
0:00:06.3]} 47... e3 {[%clk 0:00:05.2]} 48. g7 {[%clk 0:00:07]} 48... e2 {[%clk
0:00:05.7]} 49. g8=Q {[%clk 0:00:07.4]} 49... e1=Q {[%clk 0:00:06]} 50. Qg6+
{[%clk 0:00:07.8]} 50... Kc7 {[%clk 0:00:05.7]} 51. Qe6 {[%clk 0:00:07.1]} 51...
Qxe6+ {[%clk 0:00:05.4]} 52. Kxe6 {[%clk 0:00:08]} 1/2-1/2

[Event "Late-Titled-Tuesday-Blitz-September-19-2023"]
[Site "Chess.com"]
[Date "2023.09.19"]
[Round "6"]
[White "picturesquecheck"]
[Black "Rital44"]
[Result "1/2-1/2"]
[WhiteElo "2381"]
[BlackElo "2564"]
[TimeControl "180+1"]
[EndTime "15:05:19 PDT"]
[Termination "Game drawn - insufficient material"]

1. e4 {[%clk 0:03:00.9]} 1... g6 {[%clk 0:03:00.7]} 2. d4 {[%clk 0:02:59.7]}
2... Bg7 {[%clk 0:03:01.6]} 3. c4 {[%clk 0:02:59.6]} 3... c5 {[%clk 0:03:01.2]}
4. Nf3 {[%clk 0:02:58]} 4... Qb6 {[%clk 0:03:01.1]} 5. Nc3 {[%clk 0:02:46.9]}
5... cxd4 {[%clk 0:02:56.3]} 6. Nd5 {[%clk 0:02:45.2]} 6... Qa5+ {[%clk
0:02:49.7]} 7. b4 {[%clk 0:02:42.7]} 7... Qd8 {[%clk 0:02:47.7]} 8. Nxd4 {[%clk
0:02:37.9]} 8... Nf6 {[%clk 0:02:37.1]} 9. Nxf6+ {[%clk 0:02:27.4]} 9... Bxf6
{[%clk 0:02:36.9]} 10. Bb2 {[%clk 0:02:27.5]} 10... O-O {[%clk 0:02:33.6]} 11.
Be2 {[%clk 0:02:23.8]} 11... d6 {[%clk 0:02:06.4]} 12. O-O {[%clk 0:02:22.1]}
12... Bd7 {[%clk 0:02:05.8]} 13. a3 {[%clk 0:02:21.2]} 13... Na6 {[%clk
0:02:01.4]} 14. Rc1 {[%clk 0:02:18.3]} 14... Rc8 {[%clk 0:01:59.5]} 15. Kh1
{[%clk 0:02:17.9]} 15... Nc7 {[%clk 0:01:57.6]} 16. f4 {[%clk 0:02:17.6]} 16...
Bg7 {[%clk 0:01:57.1]} 17. Ba1 {[%clk 0:02:17]} 17... a5 {[%clk 0:01:54]} 18.
Bf3 {[%clk 0:02:14.7]} 18... axb4 {[%clk 0:01:52.8]} 19. axb4 {[%clk 0:02:15.6]}
19... Na6 {[%clk 0:01:52]} 20. Qe1 {[%clk 0:01:50.6]} 20... e5 {[%clk
0:01:48.4]} 21. Ne2 {[%clk 0:01:31.1]} 21... b5 {[%clk 0:01:42.7]} 22. cxb5
{[%clk 0:01:24.4]} 22... Bxb5 {[%clk 0:01:31.7]} 23. Rxc8 {[%clk 0:01:23.3]}
23... Qxc8 {[%clk 0:01:30.9]} 24. Qd2 {[%clk 0:01:23.5]} 24... Qc4 {[%clk
0:01:06.4]} 25. Qxd6 {[%clk 0:01:18.9]} 25... Qxb4 {[%clk 0:00:57.6]} 26. Qxb4
{[%clk 0:01:16.2]} 26... Nxb4 {[%clk 0:00:58.5]} 27. Bxe5 {[%clk 0:01:14.2]}
27... Bxe5 {[%clk 0:00:56.8]} 28. fxe5 {[%clk 0:01:15.1]} 28... Nd3 {[%clk
0:00:55]} 29. Rb1 {[%clk 0:01:04.9]} 29... Ba6 {[%clk 0:00:51.9]} 30. Rb6 {[%clk
0:00:57.8]} 30... Ra8 {[%clk 0:00:48.9]} 31. e6 {[%clk 0:00:53.7]} 31... fxe6
{[%clk 0:00:46.6]} 32. h3 {[%clk 0:00:49.5]} 32... Ne5 {[%clk 0:00:43]} 33. Nd4
{[%clk 0:00:46.4]} 33... Nxf3 {[%clk 0:00:37.9]} 34. Nxf3 {[%clk 0:00:37.8]}
34... Bc4 {[%clk 0:00:29.2]} 35. Ng5 {[%clk 0:00:34.7]} 35... Ra1+ {[%clk
0:00:24.3]} 36. Kh2 {[%clk 0:00:34.3]} 36... Ra2 {[%clk 0:00:25]} 37. Nxe6
{[%clk 0:00:28.3]} 37... Bf1 {[%clk 0:00:24.9]} 38. Nf4 {[%clk 0:00:28.4]} 38...
g5 {[%clk 0:00:25.5]} 39. Kg1 {[%clk 0:00:27.9]} 39... Ra1 {[%clk 0:00:16]} 40.
Nd5 {[%clk 0:00:26.9]} 40... Bd3+ {[%clk 0:00:14]} 41. Kh2 {[%clk 0:00:26.4]}
41... Kg7 {[%clk 0:00:12.2]} 42. Rb7+ {[%clk 0:00:24.5]} 42... Kg6 {[%clk
0:00:12.3]} 43. Ne7+ {[%clk 0:00:22.6]} 43... Kf6 {[%clk 0:00:08.5]} 44. Ng8+
{[%clk 0:00:20.4]} 44... Ke5 {[%clk 0:00:08.6]} 45. Rxh7 {[%clk 0:00:18.4]}
45... Bxe4 {[%clk 0:00:09.1]} 46. Re7+ {[%clk 0:00:18.4]} 46... Kd4 {[%clk
0:00:08.8]} 47. Nf6 {[%clk 0:00:18.4]} 47... Ba8 {[%clk 0:00:07.6]} 48. Rd7+
{[%clk 0:00:18.4]} 48... Ke5 {[%clk 0:00:06.9]} 49. Ng4+ {[%clk 0:00:18.2]}
49... Kf4 {[%clk 0:00:06.5]} 50. Rf7+ {[%clk 0:00:17.8]} 50... Ke4 {[%clk
0:00:06.2]} 51. Rf2 {[%clk 0:00:18.2]} 51... Ra3 {[%clk 0:00:05.9]} 52. Re2+
{[%clk 0:00:17.8]} 52... Kf5 {[%clk 0:00:06.6]} 53. Rf2+ {[%clk 0:00:18]} 53...
Kg6 {[%clk 0:00:07.2]} 54. Re2 {[%clk 0:00:17.6]} 54... Rb3 {[%clk 0:00:06.9]}
55. Ne5+ {[%clk 0:00:17.5]} 55... Kf5 {[%clk 0:00:07.1]} 56. Nf3 {[%clk
0:00:16.7]} 56... Bxf3 {[%clk 0:00:06.7]} 57. gxf3 {[%clk 0:00:17.6]} 57... Rxf3
{[%clk 0:00:07.1]} 58. Kg2 {[%clk 0:00:18.3]} 58... Rf4 {[%clk 0:00:07.5]} 59.
Rf2 {[%clk 0:00:18.9]} 59... Rxf2+ {[%clk 0:00:07.1]} 60. Kxf2 {[%clk
0:00:19.1]} 60... Kg6 {[%clk 0:00:08]} 61. Kg3 {[%clk 0:00:19.5]} 61... Kh5
{[%clk 0:00:08.9]} 62. Kg2 {[%clk 0:00:19]} 62... g4 {[%clk 0:00:09.2]} 63.
hxg4+ {[%clk 0:00:18.9]} 63... Kxg4 {[%clk 0:00:09.8]} 1/2-1/2

[Event "Late-Titled-Tuesday-Blitz-September-19-2023"]
[Site "Chess.com"]
[Date "2023.09.19"]
[Round "6"]
[White "Sokoloco"]
[Black "K_A_S_T_O_R"]
[Result "1/2-1/2"]
[WhiteElo "2672"]
[BlackElo "2911"]
[TimeControl "180+1"]
[EndTime "15:05:22 PDT"]
[Termination "Game drawn by repetition"]

1. b3 {[%clk 0:03:00.9]} 1... d5 {[%clk 0:02:55.5]} 2. Bb2 {[%clk 0:03:01.8]}
2... c5 {[%clk 0:02:54.4]} 3. e3 {[%clk 0:03:02]} 3... a6 {[%clk 0:02:54.1]} 4.
Nf3 {[%clk 0:03:02.4]} 4... Nf6 {[%clk 0:02:53.9]} 5. d4 {[%clk 0:03:03.3]} 5...
cxd4 {[%clk 0:02:53.6]} 6. exd4 {[%clk 0:03:04.2]} 6... Bg4 {[%clk 0:02:52.9]}
7. Be2 {[%clk 0:03:03.5]} 7... Nc6 {[%clk 0:02:52.9]} 8. O-O {[%clk 0:03:02.9]}
8... e6 {[%clk 0:02:53.2]} 9. Nbd2 {[%clk 0:03:02.5]} 9... Rc8 {[%clk
0:02:51.7]} 10. h3 {[%clk 0:03:02.6]} 10... Bh5 {[%clk 0:02:50.8]} 11. Ne5
{[%clk 0:03:02.1]} 11... Bxe2 {[%clk 0:02:48.8]} 12. Qxe2 {[%clk 0:03:03]} 12...
Be7 {[%clk 0:02:44.9]} 13. c3 {[%clk 0:02:47.4]} 13... O-O {[%clk 0:02:40.6]}
14. f4 {[%clk 0:02:46.7]} 14... Ne8 {[%clk 0:02:10]} 15. f5 {[%clk 0:02:33.8]}
15... Nxe5 {[%clk 0:02:02.9]} 16. dxe5 {[%clk 0:02:34]} 16... exf5 {[%clk
0:02:01.6]} 17. Rxf5 {[%clk 0:02:34]} 17... Nc7 {[%clk 0:02:01.6]} 18. c4 {[%clk
0:02:03.8]} 18... b5 {[%clk 0:01:54.2]} 19. cxd5 {[%clk 0:02:00.8]} 19... Qxd5
{[%clk 0:01:50.4]} 20. Ne4 {[%clk 0:02:00.4]} 20... Ne6 {[%clk 0:01:44.7]} 21.
Rd1 {[%clk 0:01:57.8]} 21... Qc6 {[%clk 0:01:40.7]} 22. Nd6 {[%clk 0:01:47.9]}
22... Rcd8 {[%clk 0:01:40.1]} 23. Ba3 {[%clk 0:01:04.6]} 23... b4 {[%clk
0:01:35.5]} 24. Bb2 {[%clk 0:00:58.1]} 24... Bxd6 {[%clk 0:01:33.4]} 25. exd6
{[%clk 0:00:57.6]} 25... Rxd6 {[%clk 0:01:33.8]} 26. Rxd6 {[%clk 0:00:52]} 26...
Qxd6 {[%clk 0:01:33.9]} 27. Qf2 {[%clk 0:00:46.5]} 27... f6 {[%clk 0:01:29.8]}
28. Qe3 {[%clk 0:00:39.1]} 28... Re8 {[%clk 0:01:15.2]} 29. Rf2 {[%clk 0:00:35]}
29... Nc7 {[%clk 0:01:11.4]} 30. Qd2 {[%clk 0:00:32.5]} 30... Rd8 {[%clk
0:01:07.5]} 31. Qc2 {[%clk 0:00:21.6]} 31... Ne6 {[%clk 0:00:58.3]} 32. Qc4
{[%clk 0:00:20.7]} 32... a5 {[%clk 0:00:54.2]} 33. Re2 {[%clk 0:00:20.1]} 33...
Kf7 {[%clk 0:00:52.5]} 34. Qe4 {[%clk 0:00:13.6]} 34... Ng5 {[%clk 0:00:46.3]}
35. Qb7+ {[%clk 0:00:11.2]} 35... Rd7 {[%clk 0:00:39]} 36. Qa8 {[%clk 0:00:11]}
36... Qb6+ {[%clk 0:00:38]} 37. Kh2 {[%clk 0:00:09.2]} 37... Qd8 {[%clk
0:00:34.9]} 38. Qxd8 {[%clk 0:00:04.2]} 38... Rxd8 {[%clk 0:00:34.8]} 39. Rc2
{[%clk 0:00:04.5]} 39... Ne6 {[%clk 0:00:32.4]} 40. Kg3 {[%clk 0:00:03.6]} 40...
Rd3+ {[%clk 0:00:30.7]} 41. Kf2 {[%clk 0:00:04.2]} 41... h5 {[%clk 0:00:30]} 42.
Re2 {[%clk 0:00:03.7]} 42... Nf4 {[%clk 0:00:29]} 43. Rc2 {[%clk 0:00:03.6]}
43... h4 {[%clk 0:00:29.5]} 44. Bc1 {[%clk 0:00:03.4]} 44... Ne6 {[%clk
0:00:27.5]} 45. Rc6 {[%clk 0:00:03.4]} 45... Nd4 {[%clk 0:00:24.3]} 46. Rd6
{[%clk 0:00:02.6]} 46... Ke7 {[%clk 0:00:17.1]} 47. Rd5 {[%clk 0:00:01.4]} 47...
Ke6 {[%clk 0:00:16.9]} 48. Rd8 {[%clk 0:00:02.1]} 48... Ke5 {[%clk 0:00:15.5]}
49. Be3 {[%clk 0:00:01.5]} 49... Ke4 {[%clk 0:00:12.1]} 50. Re8+ {[%clk
0:00:02]} 50... Kd5 {[%clk 0:00:10.4]} 51. Rd8+ {[%clk 0:00:02.9]} 51... Kc5
{[%clk 0:00:10.9]} 52. Rc8+ {[%clk 0:00:03.1]} 52... Kb5 {[%clk 0:00:11.3]} 53.
Rd8 {[%clk 0:00:04]} 53... Kc5 {[%clk 0:00:07.5]} 54. Rc8+ {[%clk 0:00:04.4]}
54... Kd5 {[%clk 0:00:07.9]} 55. Rd8+ {[%clk 0:00:05.3]} 55... Ke4 {[%clk
0:00:08.4]} 56. Re8+ {[%clk 0:00:05.5]} 56... Kd5 {[%clk 0:00:04.3]} 57. Rd8+
{[%clk 0:00:06.4]} 1/2-1/2

[Event "Late-Titled-Tuesday-Blitz-September-19-2023"]
[Site "Chess.com"]
[Date "2023.09.19"]
[Round "6"]
[White "Cipy77"]
[Black "karinachess1"]
[Result "0-1"]
[WhiteElo "2494"]
[BlackElo "2605"]
[TimeControl "180+1"]
[EndTime "15:05:25 PDT"]
[Termination "karinachess1 won on time"]

1. e4 {[%clk 0:02:55.1]} 1... c5 {[%clk 0:02:59.8]} 2. Nf3 {[%clk 0:02:50.9]}
2... e6 {[%clk 0:02:59.5]} 3. Nc3 {[%clk 0:02:48.7]} 3... Nc6 {[%clk 0:02:57.5]}
4. Bb5 {[%clk 0:02:48.7]} 4... Nd4 {[%clk 0:02:57.3]} 5. O-O {[%clk 0:02:48.8]}
5... g6 {[%clk 0:02:57.2]} 6. Nxd4 {[%clk 0:02:48.5]} 6... cxd4 {[%clk
0:02:58.1]} 7. Ne2 {[%clk 0:02:48.6]} 7... Bg7 {[%clk 0:02:58.4]} 8. c3 {[%clk
0:02:48]} 8... Qb6 {[%clk 0:02:54.2]} 9. a4 {[%clk 0:02:47]} 9... a6 {[%clk
0:02:50.5]} 10. Bc4 {[%clk 0:02:47]} 10... Qc7 {[%clk 0:02:48.5]} 11. d3 {[%clk
0:02:46.8]} 11... dxc3 {[%clk 0:02:45.8]} 12. bxc3 {[%clk 0:02:47.7]} 12... Ne7
{[%clk 0:02:46.2]} 13. Bf4 {[%clk 0:02:24.6]} 13... d6 {[%clk 0:02:42.7]} 14.
Qd2 {[%clk 0:02:24.9]} 14... O-O {[%clk 0:02:41]} 15. Bh6 {[%clk 0:02:24.8]}
15... d5 {[%clk 0:02:32.4]} 16. Bxg7 {[%clk 0:02:24]} 16... Kxg7 {[%clk
0:02:31]} 17. exd5 {[%clk 0:02:23.1]} 17... exd5 {[%clk 0:02:26.3]} 18. Bb3
{[%clk 0:02:22.1]} 18... Bf5 {[%clk 0:02:24.7]} 19. Nf4 {[%clk 0:02:17.3]} 19...
Rfd8 {[%clk 0:02:12.5]} 20. Rfe1 {[%clk 0:02:15.3]} 20... Rac8 {[%clk
0:02:07.2]} 21. Rac1 {[%clk 0:02:11.3]} 21... d4 {[%clk 0:01:48]} 22. cxd4
{[%clk 0:02:07.9]} 22... Qd6 {[%clk 0:01:38.1]} 23. d5 {[%clk 0:02:04.3]} 23...
Ng8 {[%clk 0:01:32.6]} 24. h4 {[%clk 0:01:56.8]} 24... Nf6 {[%clk 0:01:27.8]}
25. h5 {[%clk 0:01:55.6]} 25... g5 {[%clk 0:01:23.1]} 26. Ne2 {[%clk 0:01:51.6]}
26... h6 {[%clk 0:01:23.1]} 27. Ng3 {[%clk 0:01:51]} 27... Bd7 {[%clk
0:01:14.9]} 28. Ne4 {[%clk 0:01:50.3]} 28... Nxe4 {[%clk 0:00:57.1]} 29. dxe4
{[%clk 0:01:50.1]} 29... Qe5 {[%clk 0:00:57.3]} 30. Qb4 {[%clk 0:01:43.8]} 30...
b5 {[%clk 0:00:52.3]} 31. axb5 {[%clk 0:01:43.3]} 31... Bxb5 {[%clk 0:00:51.2]}
32. Bc4 {[%clk 0:01:36.4]} 32... Bxc4 {[%clk 0:00:40.2]} 33. Rxc4 {[%clk
0:01:37.3]} 33... Rxc4 {[%clk 0:00:40]} 34. Qxc4 {[%clk 0:01:38.2]} 34... Rd6
{[%clk 0:00:33.9]} 35. Rb1 {[%clk 0:01:37.9]} 35... Rf6 {[%clk 0:00:30.3]} 36.
g3 {[%clk 0:01:24.8]} 36... g4 {[%clk 0:00:29.8]} 37. Rb7 {[%clk 0:01:17.8]}
37... Qa1+ {[%clk 0:00:09.4]} 38. Kg2 {[%clk 0:01:17.5]} 38... Qe1 {[%clk
0:00:07]} 39. Rb2 {[%clk 0:01:14.1]} 39... a5 {[%clk 0:00:07.2]} 40. Qc5 {[%clk
0:01:07.7]} 40... Qxe4+ {[%clk 0:00:07]} 41. Kh2 {[%clk 0:01:04.4]} 41... Rf5
{[%clk 0:00:07.5]} 42. Qc3+ {[%clk 0:01:01.5]} 42... Kh7 {[%clk 0:00:08]} 43. f3
{[%clk 0:00:36]} 43... gxf3 {[%clk 0:00:08.4]} 44. Kg1 {[%clk 0:00:34.5]} 44...
Rxh5 {[%clk 0:00:04.3]} 45. g4 {[%clk 0:00:17.1]} 45... f2+ {[%clk 0:00:04.2]}
46. Kxf2 {[%clk 0:00:14.3]} 46... Qf4+ {[%clk 0:00:02.4]} 47. Kg1 {[%clk
0:00:12.8]} 47... Qxg4+ {[%clk 0:00:03]} 48. Rg2 {[%clk 0:00:10.5]} 48... Qd1+
{[%clk 0:00:03.6]} 49. Kf2 {[%clk 0:00:10]} 49... Rf5+ {[%clk 0:00:04.3]} 50.
Kg3 {[%clk 0:00:08.5]} 50... Qxd5 {[%clk 0:00:04.7]} 51. Rd2 {[%clk 0:00:07.5]}
51... Rg5+ {[%clk 0:00:05.1]} 52. Kh3 {[%clk 0:00:06.7]} 52... Rh5+ {[%clk
0:00:05.4]} 53. Kg3 {[%clk 0:00:07]} 53... Qg5+ {[%clk 0:00:05.9]} 54. Kf2
{[%clk 0:00:06.6]} 54... Rh2+ {[%clk 0:00:06.4]} 55. Kf1 {[%clk 0:00:04.6]}
55... Qxd2 {[%clk 0:00:06.3]} 0-1